bitfinex-derivatives/quotes_SOLF0:USTF0_20241021
["timestamp","ask_amount","ask_price","bid_price","bid_amount"]
[1729511232524,7.26183246,166.33,166.3,3.0082]
[1729511233116,7.26183246,166.33,166.21,8.2332]
[1729511233817,3.0081,166.31,166.27,3.0086]
[1729511234025,7.26183246,166.33,166.21,8.2332]
[1729511234511,7.26183246,166.33,166.3,3.0082]
[1729511235128,10.26953246,166.33,166.29,3.0084]
[1729511236319,3.0079,166.32,166.28,3.0086]
[1729511237525,3.0081,166.31,166.28,3.0086]
[1729511237927,7.26183246,166.33,166.28,3.0086]
[1729511238427,7.328,166.32,166.28,3.0086]
[1729511238622,4.32,166.32,166.21,3.9132]
[1729511239021,3.0084,166.29,166.21,3.9132]
[1729511239218,4.32,166.28,166.25,3.009]
[1729511239423,4.32,166.28,166.21,3.9132]
[1729511242626,4.32,166.28,166.23,3.0095]
[1729511242827,4.32,166.28,166.21,3.9132]
[1729511243234,3.0088,166.27,166.23,3.0094]
[1729511244325,3.0088,166.27,166.12,11.97772132]
[1729511244326,4.32,166.28,166.13,4.32]
[1729511244531,4.32,166.28,166.14,1.3469]
[1729511244532,7.3145136,166.28,166.14,1.3469]
[1729511245429,7.3145136,166.28,166.19,3.0101]
[1729511246030,7.3145136,166.28,166.14,1.3469]
[1729511246732,3.0094,166.24,166.19,3.0101]
[1729511246933,4.32,166.23,166.19,3.0101]
[1729511247331,4.32,166.23,166.14,1.3469]
[1729511247529,4.32,166.23,166.2,3.0099]
[1729511248333,7.3295,166.23,166.19,3.0101]
[1729511248537,4.32,166.23,166.14,1.3469]
[1729511249040,4.32,166.23,166.22,3.0097]
[1729511249234,2.9945136,166.28,166.14,1.3469]
[1729511249543,4.32,166.27,166.14,1.3469]
[1729511249836,7.38156855,166.27,166.14,1.3469]
[1729511250033,10.39036855,166.27,166.23,3.0094]
[1729511250234,3.06156855,166.27,166.15,10.3618]
[1729511250436,68.8885,166.32,166.15,4.34]
[1729511250644,7.36993767,166.31,166.15,7.38981994]
[1729511251034,7.36993767,166.31,166.3,3.0081]
[1729511252638,3.9546,166.38,166.27,3.0087]
[1729511252840,3.9546,166.38,166.23,4.34]
[1729511252841,4.34,166.37,166.23,4.34]
[1729511253839,6.9614,166.38,166.23,4.34]
[1729511254035,4.34,166.36,166.22,3.9831]
[1729511254241,3.0079,166.32,166.27,3.0086]
[1729511254441,4.34,166.31,166.27,3.0086]
[1729511254644,7.3481,166.31,166.26,3.0088]
[1729511255145,7.29410662,166.31,166.22,2.6256]
[1729511255444,3.0082,166.3,166.25,3.009]
[1729511256450,7.29410662,166.31,166.27,3.0087]
[1729511257047,3.0084,166.29,166.24,3.0093]
[1729511257752,3.0086,166.28,166.24,3.0093]
[1729511257946,4.34,166.27,166.24,3.0093]
[1729511260051,4.34,166.27,166.17,6.9106]
[1729511260846,4.34,166.27,166.24,3.0093]
[1729511262341,4.34,166.27,166.23,3.0094]
[1729511262548,3.009,166.26,166.17,2.5706]
[1729511262750,4.34,166.27,166.17,1.3382]
[1729511263345,3.0091,166.25,166.21,3.0097]
[1729511263554,4.34,166.27,166.17,1.3382]
[1729511264757,4.34,166.27,166.13,4.34]
[1729511265143,3.0092,166.25,166.2,3.0099]
[1729511265656,4.34,166.27,166.19,3.0102]
[1729511265657,3.0095,166.24,166.19,3.0102]
[1729511265863,4.34,166.23,166.19,3.0102]
[1729511267554,4.34,166.23,166.13,4.34]
[1729511269351,4.34,166.23,166.21,3.0098]
[1729511271752,4.34,166.23,166.13,4.34]
[1729511271954,4.34,166.23,166.22,3.0097]
[1729511272359,4.34,166.23,166.13,4.34]
[1729511272560,3.00896995,166.22,166.13,4.34]
[1729511273354,6.84670662,166.31,166.13,4.34]
[1729511273562,4.34,166.3,166.13,4.34]
[1729511274149,3.0088,166.27,166.13,4.34]
[1729511274348,6.84670662,166.31,166.13,4.34]
[1729511274349,4.34,166.26,166.13,4.34]
[1729511274556,4.34,166.25,166.13,4.34]
[1729511274857,7.3492,166.25,166.13,4.34]
[1729511275559,4.34,166.25,166.21,3.0097]
[1729511276156,4.34,166.25,166.13,4.34]
[1729511276756,4.34,166.25,166.24,3.0093]
[1729511277555,4.34,166.25,166.23,3.0094]
[1729511279260,4.34,166.25,166.22,3.0096]
[1729511280263,4.34,166.25,166.23,3.0095]
[1729511280867,4.34,166.25,166.16,1.33]
[1729511281956,4.34,166.25,166.22,3.0095]
[1729511282563,4.34,166.25,166.16,1.33]
[1729511282863,4.34,166.25,166.23,3.0095]
[1729511283663,4.34,166.25,166.16,1.33]
[1729511283861,7.3492,166.25,166.21,3.0098]
[1729511286473,3.0094,166.24,166.2,3.0099]
[1729511286771,4.34,166.25,166.16,1.33]
[1729511286963,4.34,166.25,166.15,1.3147]
[1729511287271,3.0095,166.23,166.19,3.0101]
[1729511287459,4.34,166.25,166.15,1.3147]
[1729511288064,4.34,166.25,166.18,3.0104]
[1729511288065,3.0095,166.23,166.18,3.0104]
[1729511288465,4.0413,166.24,166.18,3.0104]
[1729511288971,3.0097,166.22,166.18,3.0104]
[1729511289159,4.4,166.21,166.1,3.9214]
[1729511289365,7.4099,166.21,166.16,3.0106]
[1729511290060,10.42519638,166.21,166.16,3.0106]
[1729511290669,10.42519638,166.21,166.17,3.0105]
[1729511290870,10.42519638,166.21,166.1,3.9214]
[1729511290871,7.41529638,166.21,166.1,3.9214]
[1729511291565,7.41529638,166.21,166.12,6.023]
[1729511292371,7.41529638,166.21,166.18,3.0102]
[1729511293667,7.41529638,166.21,166.19,3.0101]
[1729511295061,7.41529638,166.21,166.14,3.011]
[1729511295267,7.41529638,166.21,166.1,3.9214]
[1729511295470,10.42519638,166.21,166.1,3.9214]
[1729511295668,7.41529638,166.21,166.1,3.9214]
[1729511296067,10.42519638,166.21,166.1,3.9214]
[1729511296271,7.41529638,166.21,166.1,3.9214]
[1729511296879,7.41529638,166.21,166.18,3.0102]
[1729511297271,7.41529638,166.21,166.1,3.9214]
[1729511297476,10.42519638,166.21,166.17,3.0106]
[1729511297778,7.41529638,166.21,166.1,3.9214]
[1729511298178,3.01,166.2,166.1,3.9214]
[1729511299875,3.01,166.2,166.15,3.0108]
[1729511301679,7.41529638,166.21,166.1,2.5697]
[1729511301878,7.41529638,166.21,166.14,3.011]
[1729511302172,7.41529638,166.21,166.1,2.5697]
[1729511302377,4.4,166.21,166.06,4.4]
[1729511302671,3.0103,166.19,166.07,1.3164]
[1729511302877,7.4461528,166.21,166.14,3.011]
[1729511303382,3.0105,166.18,166.14,3.011]
[1729511303576,3.0461528,166.21,166.07,2.6618]
[1729511303772,4.4,166.2,166.08,1.3139]
[1729511303977,7.35840617,166.2,166.08,1.3139]
[1729511304172,7.35840617,166.2,166.17,3.0105]
[1729511304377,7.35840617,166.2,166.08,6.0243]
[1729511304579,3.0103,166.19,166.14,3.0109]
[1729511307482,7.35840617,166.2,166.11,3.0116]
[1729511307483,10.36840617,166.2,166.11,3.0116]
[1729511307675,7.35840617,166.2,166.08,6.0243]
[1729511308180,4.4,166.19,166.17,3.0104]
[1729511308881,4.4,166.19,166.1,4.4]
[1729511309077,4.4,166.19,166.15,3.0108]
[1729511309283,4.4,166.19,166.1,4.4]
[1729511309486,10.49249325,166.19,166.14,3.011]
[1729511309680,10.49249325,166.19,166.1,4.4]
[1729511310282,10.49249325,166.19,166.14,3.0109]
[1729511312287,10.49249325,166.19,166.1,4.4]
[1729511312489,10.49249325,166.19,166.15,3.0109]
[1729511313590,3.08219325,166.19,166.1,4.4]
[1729511313888,4.4,166.21,166.11,6.0234]
[1729511314080,7.38848301,166.21,166.11,6.0234]
[1729511314480,7.38848301,166.21,166.19,3.0101]
[1729511314680,7.38848301,166.21,166.1,4.4]
[1729511315583,10.39848301,166.21,166.16,3.0107]
[1729511316385,7.38848301,166.21,166.1,4.4]
[1729511316581,3.0101,166.2,166.1,4.4]
[1729511316782,7.38848301,166.21,166.1,4.4]
[1729511317391,3.0101,166.2,166.1,4.4]
[1729511317686,3.0101,166.2,166.15,3.0108]
[1729511318886,7.38848301,166.21,166.15,3.0108]
[1729511318887,3.0102,166.19,166.15,3.0108]
[1729511319286,7.38848301,166.21,166.17,3.0105]
[1729511320602,10.39848301,166.21,166.17,3.0105]
[1729511321490,3.0103,166.19,166.15,3.0108]
[1729511322687,3.0103,166.19,166.1,4.4]
[1729511322885,7.38848301,166.21,166.07,8.322]
[1729511323090,3.0106,166.17,166.07,3.922]
[1729511323296,4.4,166.16,166.09,3.0119]
[1729511323601,4.4,166.15,166.07,3.922]
[1729511324297,3.02771792,166.14,166.13,3.0113]
[1729511324496,4.4,166.15,166.07,3.922]
[1729511324996,7.47412665,166.15,166.12,3.0113]
[1729511332003,7.47412665,166.15,166.07,3.922]
[1729511333091,7.47412665,166.15,166.12,3.0113]
[1729511337200,7.47412665,166.15,166.09,3.012]
[1729511337404,7.47412665,166.15,166.07,3.922]
[1729511338005,7.47412665,166.15,166.12,3.0114]
[1729511343411,7.47412665,166.15,166.07,2.6618]
[1729511344007,7.47412665,166.15,166.07,1.3454]
[1729511346109,3.07412665,166.15,166.14,3.0111]
[1729511346305,4.0413,166.24,166.08,5.6653]
[1729511346507,7.3696,166.23,166.18,3.0102]
[1729511347210,4.36,166.23,166.09,1.309]
[1729511347412,4.36,166.23,166.16,3.0107]
[1729511347608,4.36,166.23,166.09,1.309]
[1729511348007,3.0103,166.19,166.15,3.0109]
[1729511348203,4.36,166.18,166.15,3.0109]
[1729511348609,4.36,166.18,166.09,1.309]
[1729511349505,8.189,166.18,166.09,1.309]
[1729511350814,3.0109,166.16,166.12,3.0115]
[1729511351011,3.0109,166.16,166.09,1.309]
[1729511351521,3.0109,166.16,166.07,1.3454]
[1729511351909,3.0109,166.16,166.11,3.0115]
[1729511353410,3.0106,166.17,166.07,1.3454]
[1729511353823,3.829,166.18,166.07,1.3454]
[1729511354126,4.36,166.17,166.07,1.3454]
[1729511354914,4.36,166.17,166.14,3.011]
[1729511357023,4.36,166.17,166.15,3.0109]
[1729511357230,2.94098053,166.19,166.09,4.36]
[1729511357422,4.36,166.22,166.1,1.3421]
[1729511357619,7.35016971,166.22,166.13,3.0112]
[1729511357823,7.35016971,166.22,166.11,1.3458]
[1729511358023,4.36,166.21,166.11,1.3458]
[1729511358224,4.36,166.21,166.19,3.0101]
[1729511359318,7.44804095,166.21,166.19,3.0101]
[1729511359929,3.08804095,166.21,166.19,3.0101]
[1729511360226,4.36,166.22,166.19,3.0101]
[1729511360429,7.39470535,166.22,166.19,3.0101]
[1729511360928,3.03470535,166.22,166.21,3.0098]
[1729511361231,65.04,166.29,166.17,4.36]
[1729511361232,68.985,166.29,166.17,4.36]
[1729511361423,4.36,166.27,166.24,3.0092]
[1729511361623,4.36,166.27,166.18,1.3248]
[1729511362021,3.0091,166.26,166.2,3.01]
[1729511362227,4.36,166.27,166.14,1.2841]
[1729511363030,3.0096,166.23,166.17,3.0104]
[1729511363228,4.36,166.22,166.14,1.2841]
[1729511363431,7.30269308,166.22,166.14,1.2841]
[1729511364329,2.94269308,166.22,166.14,1.2841]
[1729511364633,4.36,166.22,166.14,1.2841]
[1729511364836,2.96106985,166.21,166.14,1.2841]
[1729511365331,2.96106985,166.21,166.19,3.0101]
[1729511367829,2.96106985,166.21,166.19,3.01]
[1729511368526,2.96106985,166.21,166.18,3.0103]
[1729511368727,2.96106985,166.21,166.14,1.2841]
[1729511369330,4.36,166.22,166.11,1.2847]
[1729511369528,7.39969576,166.22,166.11,1.2847]
[1729511369929,10.40949576,166.22,166.17,3.0105]
[1729511371436,7.39969576,166.22,166.17,3.0105]
[1729511371634,3.0098,166.21,166.17,3.0105]
[1729511372639,6.9209,166.21,166.17,3.0105]
[1729511373226,3.9111,166.21,166.1,1.3421]
[1729511373433,3.9111,166.21,166.09,1.3065]
[1729511374937,3.0103,166.19,166.09,1.3065]
[1729511375138,4.38,166.18,166.09,1.3065]
[1729511375539,4.38,166.18,166.14,3.011]
[1729511376243,4.38,166.17,166.09,1.3065]
[1729511377538,4.38,166.17,166.14,3.011]
[1729511377952,3.0103,166.19,166.14,3.011]
[1729511378242,4.38,166.18,166.14,3.011]
[1729511378943,4.38,166.18,166.09,1.3065]
[1729511378944,4.38,166.18,166.16,3.0107]
[1729511379239,4.38,166.18,166.09,1.3065]
[1729511379543,4.38,166.18,166.15,3.0108]
[1729511382453,4.38,166.18,166.1,4.38]
[1729511383147,4.38,166.18,166.15,3.0108]
[1729511384543,3.0107,166.17,166.09,1.3065]
[1729511385549,4.38,166.18,166.14,3.0111]
[1729511385748,4.38,166.18,166.09,1.3065]
[1729511386348,7.3905,166.18,166.09,1.3065]
[1729511386952,4.38,166.18,166.09,1.3065]
[1729511387254,3.0106,166.17,166.13,3.0112]
[1729511389949,7.3904,166.18,166.14,3.011]
[1729511390253,4.38,166.18,166.09,1.3065]
[1729511391258,4.38,166.18,166.15,3.0108]
[1729511392453,3.9111,166.21,166.09,1.3065]
[1729511392665,4.38,166.21,166.1,6.0236]
[1729511392962,4.38,166.21,166.2,3.01]
[1729511393149,3.03969576,166.22,166.14,4.38]
[1729511393350,4.38,166.24,166.15,2.688]
[1729511393660,4.38,166.24,166.21,3.0098]
[1729511395461,7.3894,166.24,166.19,3.0102]
[1729511396454,3.01,166.21,166.16,3.0106]
[1729511396747,3.01318766,166.2,166.12,5.6203]
[1729511396951,4.38,166.24,166.12,5.6203]
[1729511397254,3.0095,166.23,166.18,3.0103]
[1729511397758,3.0095,166.23,166.19,3.0102]
[1729511398950,3.0095,166.23,166.2,3.01]
[1729511401460,3.0098,166.22,166.19,3.0102]
[1729511401761,6.03359451,166.22,166.19,3.0102]
[1729511403661,3.0099,166.21,166.19,3.0102]
[1729511403854,4.38,166.2,166.19,3.0102]
[1729511406858,4.38,166.2,166.12,1.2403]
[1729511407054,3.0104,166.18,166.11,4.38]
[1729511407465,3.0104,166.18,166.09,6.0238]
[1729511407766,3.0104,166.18,166.14,3.0109]
[1729511409564,3.0104,166.18,166.13,3.0112]
[1729511409861,3.0106,166.17,166.13,3.0112]
[1729511410061,4.38,166.16,166.13,3.0112]
[1729511411962,4.38,166.16,166.08,4.38]
[1729511412171,4.38,166.16,166.13,3.0113]
[1729511412368,4.38,166.16,166.07,2.6158]
[1729511412570,3.0111,166.15,166.11,3.0116]
[1729511413270,3.0111,166.15,166.1,3.0117]
[1729511413478,4.38,166.16,166.07,2.6158]
[1729511414464,3.011,166.15,166.1,3.0117]
[1729511416274,3.0111,166.14,166.1,3.0118]
[1729511416572,4.38,166.16,166.07,2.6158]
[1729511417268,3.011,166.15,166.09,3.0119]
[1729511417471,3.011,166.15,166.07,2.6158]
[1729511417871,3.011,166.15,166.1,3.0117]
[1729511418570,3.011,166.15,166.07,2.6158]
[1729511418777,3.011,166.15,166.11,3.0117]
[1729511421175,4.38,166.16,166.07,2.6158]
[1729511422280,7.3908,166.16,166.07,2.6158]
[1729511422774,4.38,166.16,166.07,2.6158]
[1729511423375,4.38,166.16,166.14,3.0111]
[1729511425079,4.38,166.16,166.13,3.0112]
[1729511425277,4.38,166.16,166.07,2.6158]
[1729511425483,7.3908,166.16,166.07,2.6158]
[1729511425678,4.38,166.16,166.07,2.6158]
[1729511425978,3.011,166.15,166.07,2.6158]
[1729511426976,3.011,166.15,166.11,3.0115]
[1729511428577,4.38,166.16,166.09,3.0119]
[1729511428777,3.926,166.15,166.09,3.0119]
[1729511429273,3.0114,166.13,166.09,3.0119]
[1729511429479,4.38,166.12,166.09,3.0119]
[1729511429982,4.38,166.12,166.1,3.0118]
[1729511430776,3.0118,166.11,166.04,78.62621818]
[1729511431180,3.0118,166.11,166.02,4.34]
[1729511431377,3.0118,166.11,166.07,3.0123]
[1729511431682,3.0118,166.11,166.02,4.34]
[1729511431882,3.0118,166.11,166.04,3.0128]
[1729511432087,3.0118,166.11,166.01,4.34]
[1729511432582,4.38,166.12,166.05,3.0126]
[1729511432987,3.0119,166.1,166.06,3.0126]
[1729511434685,3.0119,166.1,166.07,3.0123]
[1729511434889,3.0116,166.12,166.01,4.34]
[1729511435089,4.34,166.11,166.01,4.34]
[1729511435284,3.02652106,166.13,166.01,4.34]
[1729511435591,4.34,166.12,166.09,3.0119]
[1729511435792,4.34,166.12,166.01,4.34]
[1729511436585,4.34,166.12,166.05,3.0126]
[1729511436787,3.0117,166.11,166.0,3.7967]
[1729511437087,4.34,166.12,166.0,3.7967]
[1729511437492,3.0123,166.08,166.04,3.0129]
[1729511437791,4.34,166.07,166.04,3.0129]
[1729511437987,4.34,166.07,166.03,3.0131]
[1729511439990,3.0123,166.08,166.03,3.0131]
[1729511440188,4.34,166.09,166.0,3.7967]
[1729511440991,3.04926381,166.08,166.0,8.1367]
[1729511441385,4.34,166.09,166.05,3.0126]
[1729511441587,4.34,166.09,166.0,3.7967]
[1729511441893,7.29065728,166.09,166.0,3.7967]
[1729511442391,3.0124,166.08,166.03,3.013]
[1729511443998,3.0124,166.08,166.04,3.0129]
[1729511444385,3.0123,166.08,166.0,3.7967]
[1729511444890,3.0123,166.08,166.03,3.0129]
[1729511445393,3.0124,166.07,166.03,3.0129]
[1729511448993,7.29065728,166.09,166.04,3.0129]
[1729511449190,2.95065728,166.09,166.0,3.7967]
[1729511449387,4.34,166.08,166.0,3.7967]
[1729511449591,2.97062074,166.07,166.06,3.0125]
[1729511449996,4.34,166.08,166.06,3.0125]
[1729511450393,7.39807176,166.08,166.06,3.0125]
[1729511453303,7.39807176,166.08,166.01,4.34]
[1729511453502,7.39807176,166.08,166.05,3.0126]
[1729511455200,7.39807176,166.08,166.01,4.34]
[1729511455402,10.41027176,166.08,166.04,3.0128]
[1729511456509,7.39807176,166.08,166.04,3.0128]
[1729511457208,10.41037176,166.08,166.04,3.0128]
[1729511460204,3.05807176,166.08,166.0,1.2452]
[1729511460420,4.34,166.09,166.02,6.0266]
[1729511460599,2.99938924,166.08,166.02,6.0266]
[1729511460804,4.34,166.1,166.09,3.012]
[1729511461597,7.32136096,166.1,166.09,3.012]
[1729511462007,7.32136096,166.1,166.07,3.0122]
[1729511462207,7.32136096,166.1,166.01,6.9271]
[1729511462606,7.32136096,166.1,166.08,3.0122]
[1729511462999,2.98136096,166.1,166.08,3.0122]
[1729511463200,4.34,166.11,166.08,3.0122]
[1729511463807,7.41873983,166.11,166.01,6.9271]
[1729511464009,7.41873983,166.11,166.09,3.0119]
[1729511464716,3.0119,166.1,166.07,3.0122]
[1729511465010,7.41873983,166.11,166.01,6.9271]
[1729511466014,7.41873983,166.11,166.08,3.0121]
[1729511467012,7.41873983,166.11,166.04,3.0129]
[1729511467213,7.41873983,166.11,166.01,6.9271]
[1729511467411,3.012,166.1,166.01,6.9271]
[1729511467612,7.41873983,166.11,166.07,3.0124]
[1729511468011,7.41873983,166.11,166.01,6.9271]
[1729511468615,10.43043983,166.11,166.07,3.0123]
[1729511469413,7.41873983,166.11,166.07,3.0123]
[1729511469715,7.41873983,166.11,166.01,6.9271]
[1729511469913,10.43043983,166.11,166.01,6.9271]
[1729511470314,10.43043983,166.11,166.07,3.0123]
[1729511470814,7.41873983,166.11,166.02,3.0133]
[1729511471014,7.41873983,166.11,166.0,1.2452]
[1729511471518,3.0124,166.07,166.03,3.0131]
[1729511471711,4.34,166.06,166.03,3.0131]
[1729511472113,7.3527,166.06,166.02,3.0133]
[1729511472310,4.34,166.06,166.0,1.2452]
[1729511472917,4.34,166.06,166.03,3.013]
[1729511473108,4.34,166.06,166.0,1.2452]
[1729511473711,4.34,166.06,166.02,3.0132]
[1729511474319,3.0128,166.05,166.0,3.0136]
[1729511474522,6.9161,166.05,166.0,3.0136]
[1729511475119,3.0134,166.02,165.97,3.0141]
[1729511475318,4.34,166.01,165.93,6.9298]
[1729511475818,4.34,166.01,165.97,3.0141]
[1729511476018,7.32768495,166.01,165.97,3.0141]
[1729511476215,7.32768495,166.01,165.93,2.5898]
[1729511476910,2.98768495,166.01,165.93,2.5898]
[1729511477215,4.34,166.04,165.93,2.5898]
[1729511478917,7.3531,166.04,165.99,3.0137]
[1729511479114,7.3531,166.04,165.93,2.5898]
[1729511479719,7.3531,166.04,165.99,3.0137]
[1729511480316,3.0131,166.03,165.99,3.0137]
[1729511481516,4.34,166.04,165.82,6.35397667]
[1729511481517,28.0,166.02,165.82,6.35397667]
[1729511481813,28.0,166.02,165.84,2.84512777]
[1729511482020,28.0,166.02,165.84,1.3364]
[1729511482220,3.0145,165.96,165.9,3.0154]
[1729511482519,2.96361781,165.95,165.84,1.3364]
[1729511482823,4.34,165.94,165.84,1.3364]
[1729511483117,4.34,165.94,165.85,1.50868839]
[1729511483324,7.42034079,165.95,165.92,3.015]
[1729511483625,3.9033,166.05,165.84,1.3364]
[1729511483923,3.0138,166.0,165.85,5.84865154]
[1729511484119,4.34,165.99,165.86,1.50865154]
[1729511484313,4.34,165.99,165.94,3.0147]
[1729511484513,2.97307695,166.0,165.89,4.34]
[1729511484719,4.34,165.99,165.9,6.9286]
[1729511484920,3.9033,166.05,165.97,3.0141]
[1729511484921,7.42199523,166.0,165.97,3.0141]
[1729511485817,7.42199523,166.0,165.97,3.0142]
[1729511485818,4.34,166.0,165.97,3.0142]
[1729511486321,7.41565926,166.0,165.97,3.0142]
[1729511487119,3.07565926,166.0,165.97,3.0142]
[1729511487320,4.34,166.01,165.97,3.0142]
[1729511487520,3.05127193,166.0,165.97,3.0142]
[1729511490324,2.94750153,165.99,165.95,3.0144]
[1729511494030,4.44,166.02,165.91,1.36]
[1729511494223,3.05513915,166.03,165.91,1.36]
[1729511494418,4.44,166.03,165.91,1.36]
[1729511494616,7.45380864,166.03,165.91,1.36]
[1729511494817,7.45380864,166.03,165.99,3.0137]
[1729511495018,4.44,166.03,165.94,4.44]
[1729511495626,7.49785429,166.03,165.94,4.44]
[1729511496220,7.49785429,166.03,165.99,3.0137]
[1729511496824,7.49785429,166.03,165.94,4.44]
[1729511496825,7.49785429,166.03,166.0,3.0136]
[1729511497422,68.1324,166.08,165.98,3.014]
[1729511497623,4.44,166.07,165.94,4.44]
[1729511498725,3.0128,166.05,166.0,3.0135]
[1729511498927,4.44,166.07,165.94,4.44]
[1729511500125,3.0129,166.05,166.0,3.0137]
[1729511500325,4.44,166.07,165.94,4.44]
[1729511500736,3.013,166.04,165.99,3.0137]
[1729511501033,7.47895541,166.03,165.94,4.44]
[1729511501228,4.44,166.03,165.94,4.44]
[1729511501423,4.44,166.03,165.95,4.44]
[1729511501928,7.44336975,166.03,166.0,3.0135]
[1729511502131,4.44,166.03,165.95,4.44]
[1729511502333,4.44,166.03,165.96,1.2457]
[1729511502631,65.12,166.08,165.96,1.2457]
[1729511502829,4.44,166.07,165.97,1.2562]
[1729511503133,4.44,166.07,166.03,3.013]
[1729511505132,4.44,166.07,165.98,1.3071]
[1729511505729,3.0128,166.05,166.01,3.0135]
[1729511506340,7.4526,166.07,166.0,3.0135]
[1729511506634,7.4526,166.07,165.98,1.3071]
[1729511507644,3.0126,166.06,166.01,3.0133]
[1729511508332,3.0126,166.06,166.02,3.0133]
[1729511509237,3.0126,166.06,165.97,1.2562]
[1729511509238,4.44,166.07,165.95,4.44]
[1729511509445,3.8892,166.05,165.92,6.9537]
[1729511509832,3.013,166.04,165.92,2.5137]
[1729511510032,4.44,166.03,165.92,2.5137]
[1729511510237,7.41869829,166.03,165.93,4.44]
[1729511510636,7.41869829,166.03,165.99,3.0137]
[1729511512138,7.41869829,166.03,165.89,79.92595148]
[1729511512336,7.41869829,166.03,165.89,87.36595148]
[1729511512637,7.41869829,166.03,165.89,7.44]
[1729511512839,4.44,166.02,165.99,3.0138]
[1729511513546,7.52584702,166.02,165.99,3.0138]
[1729511516443,10.53914702,166.02,165.99,3.0138]
[1729511517437,7.52584702,166.02,165.89,9.0312]
[1729511517638,3.0137,166.0,165.97,3.0141]
[1729511518545,3.0135,166.01,165.98,3.0139]
[1729511518749,7.52584702,166.02,165.9,6.0307]
[1729511518948,7.52584702,166.02,165.89,7.44]
[1729511519142,7.52584702,166.02,165.92,3.0149]
[1729511520046,7.52584702,166.02,165.98,3.0139]
[1729511520643,3.0136,166.01,165.96,3.0143]
[1729511521336,3.0136,166.01,165.97,3.0141]
[1729511521538,7.52584702,166.02,165.97,3.0141]
[1729511521738,7.52584702,166.02,165.92,3.0]
[1729511521936,7.52584702,166.02,165.99,3.0137]
[1729511523650,10.53914702,166.02,165.98,3.014]
[1729511523853,7.52584702,166.02,165.92,3.0]
[1729511525046,3.0135,166.01,165.97,3.0141]
[1729511525451,7.52584702,166.02,165.92,3.0]
[1729511525647,3.8892,166.05,165.93,1.3026]
[1729511525946,3.8892,166.05,165.94,4.46]
[1729511526149,4.46,166.04,166.03,3.013]
[1729511526349,4.46,166.04,165.94,4.46]
[1729511526650,3.00789239,166.03,165.94,4.46]
[1729511526847,4.46,166.04,165.94,4.46]
[1729511527144,4.46,166.04,165.93,3.8698]
[1729511527349,4.46,166.04,165.93,2.5654]
[1729511528345,4.46,166.04,165.96,3.0143]
[1729511529252,3.0135,166.02,165.96,3.0143]
[1729511529443,6.06616262,166.02,165.96,3.0143]
[1729511530847,3.0136,166.01,165.96,3.0143]
[1729511531046,4.46,166.0,165.96,3.0143]
[1729511531250,3.03335534,165.99,165.96,3.0143]
[1729511534751,3.8892,166.05,165.93,2.5654]
[1729511534949,4.46,166.06,165.93,2.5654]
[1729511535256,126.9606114,166.11,166.06,3.0124]
[1729511535257,2.6609,166.1,166.06,3.0124]
[1729511535451,2.6609,166.1,166.0,4.46]
[1729511535452,4.46,166.09,166.0,4.46]
[1729511536248,2.6609,166.1,166.0,4.46]